bitfinex/quotes_BTCUSD_20250723
["timestamp","ask_amount","ask_price","bid_price","bid_amount"]
[1753263829562,0.16874797,118150.0,118140.0,0.61303208]
[1753263829966,0.16874797,118150.0,118140.0,0.81627208]
[1753263830520,0.16874797,118150.0,118140.0,0.81727208]
[1753263832160,0.16874797,118150.0,118140.0,0.3989234]
[1753263832394,0.16874797,118150.0,118140.0,0.5309634]
[1753263832600,0.16874797,118150.0,118140.0,0.81731208]
[1753263833319,0.16874797,118150.0,118140.0,0.81831208]
[1753263838290,0.18449928,118150.0,118140.0,0.81831208]
[1753263839997,0.18449928,118150.0,118140.0,0.5319634]
[1753263840474,0.18449928,118150.0,118140.0,1.11721208]
[1753263840706,0.18449928,118150.0,118140.0,1.11781208]
[1753263841211,0.16874797,118150.0,118140.0,1.11781208]
[1753263841620,0.16874797,118150.0,118140.0,0.8314634]
[1753263841830,0.16874797,118150.0,118140.0,1.11781208]
[1753263845926,0.16874797,118150.0,118140.0,0.81891208]
[1753263849263,0.16874797,118150.0,118140.0,1.17746538]
[1753263852024,0.16874797,118150.0,118140.0,1.47636538]
[1753263854058,0.16675797,118150.0,118140.0,1.47636538]
[1753263856649,0.16878797,118150.0,118140.0,1.47636538]
[1753263859070,0.16878797,118150.0,118140.0,1.17746538]
[1753263861455,0.16878797,118150.0,118140.0,1.17682538]
[1753263862860,0.10018797,118150.0,118140.0,1.66018]
[1753263863062,0.10018797,118150.0,118140.0,1.72318]
[1753263863475,0.10018797,118150.0,118140.0,1.29190268]
[1753263865672,0.10018797,118150.0,118140.0,1.61435367]
[1753263866366,0.10018797,118150.0,118140.0,1.66210269]
[1753263866764,0.10018797,118150.0,118140.0,1.96100269]
[1753263867441,0.93830095,118180.0,118170.0,0.19463397]
[1753263867651,0.67436298,118180.0,118170.0,0.97149595]
[1753263868450,0.66569333,118180.0,118170.0,1.17473595]
[1753263868649,0.66569333,118180.0,118170.0,0.85228496]
[1753263868650,0.69107703,118180.0,118170.0,0.85228496]
[1753263868873,0.68461558,118180.0,118170.0,0.85228496]
[1753263869086,0.69293745,118180.0,118170.0,0.85228496]
[1753263869605,0.69588745,118180.0,118170.0,0.85228496]
[1753263869962,0.69597095,118180.0,118170.0,0.85228496]
[1753263870265,0.69897095,118180.0,118170.0,0.52983397]
[1753263870485,0.70743226,118180.0,118170.0,0.85228496]
[1753263870651,0.78069371,118180.0,118170.0,0.85228496]
[1753263870802,0.77223226,118180.0,118170.0,0.85228496]
[1753263870998,0.77769371,118180.0,118170.0,0.52983397]
[1753263871201,0.77769077,118180.0,118170.0,0.81637873]
[1753263871938,0.77869077,118180.0,118170.0,0.81637873]
[1753263872143,0.24652396,118180.0,118170.0,0.85134355]
[1753263872322,0.1531235,118180.0,118170.0,0.85343355]
[1753263872525,0.1531235,118180.0,118170.0,1.11736873]
[1753263872785,0.1531235,118180.0,118170.0,1.15084873]
[1753263872994,0.1531235,118180.0,118170.0,1.18104873]
[1753263873203,0.0031235,118180.0,118170.0,0.89959775]
[1753263873330,0.18419,118200.0,118190.0,0.19460104]
[1753263873549,0.18419,118200.0,118190.0,0.6152758]
[1753263873758,0.15004,118200.0,118190.0,0.6152758]
[1753263874218,0.15299,118200.0,118190.0,0.6152758]
[1753263874433,0.15499,118200.0,118190.0,0.6152758]
[1753263874641,0.21889,118200.0,118190.0,0.6152758]
[1753263875761,0.21889,118200.0,118190.0,0.19669104]
[1753263875986,0.21889,118200.0,118190.0,0.6131858]
[1753263877055,0.21889,118200.0,118190.0,0.63850845]
[1753263877391,0.22734966,118200.0,118190.0,0.50646845]
[1753263877604,0.24426919,118200.0,118190.0,0.21992369]
[1753263877838,0.24426919,118200.0,118190.0,0.63858845]
[1753263878050,0.22734959,118200.0,118190.0,0.64058845]
[1753263878264,0.21889,118200.0,118190.0,0.64058845]
[1753263878486,0.22734959,118200.0,118190.0,0.64058845]
[1753263879301,0.22734959,118200.0,118190.0,0.63858845]
[1753263879837,0.21889,118200.0,118190.0,0.63858845]
[1753263880072,0.22734959,118200.0,118190.0,0.63858845]
[1753263880539,0.23580932,118200.0,118190.0,0.63858845]
[1753263881151,0.23580932,118200.0,118190.0,0.35204369]
[1753263881355,0.24426919,118200.0,118190.0,0.63858845]
[1753263881571,0.22734959,118200.0,118190.0,0.63858845]
[1753263882026,0.22734959,118200.0,118190.0,0.50646845]
[1753263882241,0.22734959,118200.0,118190.0,0.63862845]
[1753263883913,0.23580939,118200.0,118190.0,0.63862845]
[1753263884348,0.53580939,118200.0,118190.0,0.63862845]
[1753263884545,0.55157828,118200.0,118190.0,0.93752845]
[1753263885563,0.55157828,118200.0,118190.0,0.93852845]
[1753263886200,0.5600383,118200.0,118190.0,0.93852845]
[1753263886865,0.87078373,118200.0,118190.0,0.2999]
[1753263887060,1.1131234,118200.0,118190.0,0.43218]
[1753263887498,1.1131234,118200.0,118190.0,0.13328]
[1753263888329,1.1385384,118200.0,118190.0,0.001]
[1753263888545,1.1385384,118200.0,118190.0,0.13328]
[1753263888718,1.1395384,118200.0,118190.0,0.13328]
[1753263889042,1.1395384,118200.0,118190.0,0.13228]
[1753263889313,1.1405384,118200.0,118190.0,0.13228]
[1753263892650,0.17538162,118190.0,118180.0,0.70123143]
[1753263892869,0.23928162,118190.0,118180.0,0.83331143]
[1753263893012,0.24223162,118190.0,118180.0,0.83331143]
[1753263893424,0.23377082,118190.0,118180.0,0.82485034]
[1753263893654,0.23377082,118190.0,118180.0,0.82481034]
[1753263893856,0.24223162,118190.0,118180.0,0.82481034]
[1753263894032,0.24223155,118190.0,118180.0,0.82481034]
[1753263894245,0.25069221,118190.0,118180.0,0.82481034]
[1753263895016,0.24223141,118190.0,118180.0,0.82481034]
[1753263895212,0.25069214,118190.0,118180.0,0.82481034]
[1753263895421,0.18585,118190.0,118180.0,0.82481034]
[1753263895632,0.15,118190.0,118180.0,0.85856034]
[1753263895808,0.15,118190.0,118180.0,0.82676034]
[1753263896801,0.19576038,118190.0,118180.0,0.82676034]
[1753263897021,0.1873,118190.0,118180.0,0.82676034]
[1753263897223,0.19576038,118190.0,118180.0,0.82676034]
[1753263897384,0.1957603,118190.0,118180.0,0.82676034]
[1753263898852,0.1873,118190.0,118180.0,0.82676034]
[1753263899264,0.1873,118190.0,118180.0,1.12566034]
[1753263900449,0.1873,118190.0,118180.0,0.68169188]
[1753263900450,0.1957603,118190.0,118180.0,0.68169188]
[1753263900665,0.1957603,118190.0,118180.0,0.83760594]
[1753263900666,0.25294221,118190.0,118180.0,0.83760594]
[1753263900893,0.26140309,118190.0,118180.0,0.9916707]
[1753263901113,0.43062214,118190.0,118180.0,1.11568954]
[1753263901326,0.42216227,118190.0,118180.0,1.11568954]
[1753263901538,0.42216227,118190.0,118180.0,0.69666478]
[1753263901747,5.8712573,118190.0,118180.0,0.33556]
[1753263901965,5.90078017,118190.0,118180.0,0.33556]
[1753263902181,0.87619917,118190.0,118180.0,0.33556]
[1753263902541,5.92619917,118190.0,118180.0,0.33556]
[1753263902978,0.85017152,118170.0,118160.0,0.77163268]
[1753263903333,0.87937141,118170.0,118160.0,1.11577906]
[1753263903873,0.87937141,118170.0,118160.0,1.13270447]
[1753263904342,0.87937141,118170.0,118160.0,1.11577906]
[1753263904494,0.88783379,118170.0,118160.0,1.1242418]
[1753263904734,0.87937141,118170.0,118160.0,1.13270447]
[1753263905046,0.87937141,118170.0,118160.0,0.83380396]
[1753263905242,0.87937141,118170.0,118160.0,0.82534137]
[1753263905654,0.87937141,118170.0,118160.0,0.8168787]
[1753263905833,0.87937141,118170.0,118160.0,0.82534137]
[1753263906025,0.88783372,118170.0,118160.0,0.82534137]
[1753263906228,0.88783372,118170.0,118160.0,0.8168787]
[1753263906625,0.88783372,118170.0,118160.0,0.82534137]
[1753263906837,0.70166148,118170.0,118160.0,0.83380396]
[1753263907535,0.87937133,118170.0,118160.0,0.82534137]
[1753263907724,0.88783364,118170.0,118160.0,0.82534137]
[1753263908284,0.88783364,118170.0,118160.0,0.79149027]
[1753263908494,0.88783421,118170.0,118160.0,0.79995337]
[1753263908673,0.88783421,118170.0,118160.0,0.8168792]
[1753263908884,0.88783421,118170.0,118160.0,0.81687927]
[1753263909179,0.87937219,118170.0,118160.0,0.81687927]
[1753263909632,0.87937219,118170.0,118160.0,0.81687934]
[1753263909846,0.87091003,118170.0,118160.0,0.81687934]
[1753263910448,0.87091003,118170.0,118160.0,0.48982826]
[1753263910669,0.85398534,118170.0,118160.0,0.62202826]
[1753263911511,0.85398534,118170.0,118160.0,0.80821617]
[1753263911922,0.85399915,118170.0,118160.0,0.67601617]
[1753263912223,0.85399915,118170.0,118160.0,0.80821617]
[1753263912642,0.85399915,118170.0,118160.0,0.80813617]
[1753263912855,0.87938579,118170.0,118160.0,0.82506172]
[1753263913067,0.70167515,118170.0,118160.0,0.83352431]
[1753263913275,0.71013724,118170.0,118160.0,0.83352431]
[1753263913920,0.53475146,118170.0,118160.0,0.83352431]
[1753263914147,0.46575146,118170.0,118160.0,1.20649637]
[1753263914367,0.46575146,118170.0,118160.0,1.15211907]
[1753263914582,0.45,118170.0,118160.0,1.18369907]
[1753263916610,0.45,118170.0,118160.0,1.18469907]
[1753263917054,0.15,118170.0,118160.0,1.48459907]
[1753263917627,0.8788074,118190.0,118180.0,0.1946175]
[1753263917830,0.88078388,118190.0,118180.0,0.61328226]
[1753263918443,0.88924468,118190.0,118180.0,0.61324226]
[1753263919017,0.86386249,118190.0,118180.0,0.61324226]
[1753263919281,0.86486249,118190.0,118180.0,0.61324226]
[1753263919710,0.87332322,118190.0,118180.0,0.61324226]
[1753263919942,0.86486249,118190.0,118180.0,0.61324226]
[1753263920115,0.86586249,118190.0,118180.0,0.61324226]
[1753263920360,0.88278388,118190.0,118180.0,0.48116226]
[1753263920538,0.88278388,118190.0,118180.0,0.61324226]
[1753263920950,0.88278388,118190.0,118180.0,0.48116226]
[1753263921153,0.89124476,118190.0,118180.0,0.61320226]
[1753263922012,0.86169939,118190.0,118180.0,0.61320226]
[1753263922488,0.86957902,118190.0,118180.0,0.61320226]
[1753263922704,0.85323851,118190.0,118180.0,0.61320226]
[1753263923161,0.727419,118190.0,118180.0,0.64775226]
[1753263923342,0.727419,118190.0,118180.0,0.61515226]
[1753263923550,0.73529894,118190.0,118180.0,0.61515226]
[1753263923765,0.71508994,118190.0,118180.0,0.61515226]
[1753263923976,0.72885091,118190.0,118180.0,0.48311226]
[1753263924173,0.72885091,118190.0,118180.0,0.61527226]
[1753263925808,0.72985091,118190.0,118180.0,0.61527226]
[1753263926216,0.32985091,118190.0,118180.0,0.61527226]
[1753263926462,0.30425,118190.0,118180.0,0.48311226]
[1753263926671,0.30425,118190.0,118180.0,0.61527226]
[1753263926844,0.30325,118190.0,118180.0,0.48311226]
[1753263927130,0.30325,118190.0,118180.0,0.61523226]
[1753263928380,0.3,118190.0,118180.0,0.61523226]
[1753263928593,0.3,118190.0,118180.0,0.64603226]
[1753263928783,0.3,118190.0,118180.0,0.94493226]
[1753263929435,0.30325,118190.0,118180.0,0.91413226]
[1753263930685,0.34657038,118190.0,118180.0,0.91214226]
[1753263931113,0.37777038,118190.0,118180.0,0.91214226]
[1753263931656,0.36931,118190.0,118180.0,0.91214226]
[1753263931866,0.36931,118190.0,118180.0,0.91218226]
[1753263934713,0.33811,118190.0,118180.0,0.91218226]
[1753263934929,0.37717038,118190.0,118180.0,0.91218226]
[1753263935403,0.3771703,118190.0,118180.0,0.91218226]
[1753263935944,0.3771703,118190.0,118180.0,0.78006226]
[1753263936078,0.3771703,118190.0,118180.0,1.11538226]
[1753263936305,0.38563075,118190.0,118180.0,1.11538226]
[1753263936887,0.39409134,118190.0,118180.0,1.11538226]
[1753263937122,0.38563075,118190.0,118180.0,0.98326226]
[1753263937362,0.38563075,118190.0,118180.0,1.11538226]
[1753263937573,0.39409134,118190.0,118180.0,0.98326226]
[1753263937797,0.39409134,118190.0,118180.0,1.11538226]
[1753263938338,0.402552,118190.0,118180.0,1.11538226]
[1753263938467,0.4110128,118190.0,118180.0,1.11538226]
[1753263938683,0.402552,118190.0,118180.0,1.11538226]
[1753263938898,0.4110128,118190.0,118180.0,1.11538226]
[1753263939114,0.4110128,118190.0,118180.0,0.8288375]
[1753263939330,0.4110128,118190.0,118180.0,1.11538226]
[1753263939551,0.4110128,118190.0,118180.0,0.8288375]
[1753263939806,0.57177198,118190.0,118180.0,0.67979496]
[1753263940066,0.65508537,118190.0,118180.0,0.81187496]
[1753263940525,0.65450269,118190.0,118180.0,0.51297496]
[1753263940996,0.01692261,118180.0,118170.0,0.78006512]
[1753263941194,0.25091641,118180.0,118170.0,1.11534576]
[1753263941393,0.23493304,118180.0,118170.0,1.11534576]
[1753263941529,0.24339456,118180.0,118170.0,1.12380764]
[1753263941745,0.39339435,118180.0,118170.0,1.12380764]
[1753263941959,0.57108931,118180.0,118170.0,1.10688381]
[1753263942218,0.57838527,118180.0,118170.0,0.97480395]
[1753263942433,0.58626314,118180.0,118170.0,0.97580395]
[1753263942636,0.57838527,118180.0,118170.0,1.10792395]
[1753263942836,0.4091519,118180.0,118170.0,1.12384792]
[1753263943039,0.56262793,118180.0,118170.0,0.78852792]
[1753263943244,0.57838527,118180.0,118170.0,1.12380792]
[1753263943445,0.59472588,118180.0,118170.0,1.12480792]
[1753263943741,0.41703085,118180.0,118170.0,1.12480792]
[1753263943945,0.39339456,118180.0,118170.0,1.12380792]
[1753263944151,0.39339456,118180.0,118170.0,0.7969898]
[1753263944352,0.39339456,118180.0,118170.0,1.1322698]
[1753263944576,0.37647123,118180.0,118170.0,1.1322698]
[1753263944843,0.38493225,118180.0,118170.0,1.1322698]
[1753263945274,0.37647102,118180.0,118170.0,1.1322698]
[1753263945482,0.15,118180.0,118170.0,1.14106324]
[1753263945689,0.51363629,118190.0,118180.0,0.2267175]
[1753263945861,0.17363629,118190.0,118180.0,0.74577917]
[1753263946085,0.15,118190.0,118180.0,0.74577917]
[1753263946954,0.15,118190.0,118180.0,0.83025647]
[1753263947164,0.15,118190.0,118180.0,1.11838123]
[1753263947369,0.15,118190.0,118180.0,0.83183647]
[1753263947560,0.15,118190.0,118180.0,0.74735917]
[1753263947769,0.15,118190.0,118180.0,1.03390393]
[1753263948266,0.15,118190.0,118180.0,0.74735917]
[1753263949588,0.15,118190.0,118180.0,0.74835917]
[1753263949832,0.15,118190.0,118180.0,0.74935917]
[1753263950274,0.15,118190.0,118180.0,0.75791257]
[1753263951128,0.15,118190.0,118180.0,1.04445733]
[1753263951555,0.15,118190.0,118180.0,0.75791257]
[1753263956180,0.15,118190.0,118180.0,0.68224226]
[1753263958444,0.15,118190.0,118180.0,0.98114226]
[1753263961143,0.15004,118190.0,118180.0,0.98114226]
[1753263967926,0.15004,118190.0,118180.0,0.94836226]
[1753263969653,4e-05,118190.0,118180.0,0.98224226]
[1753263969862,4e-05,118190.0,118180.0,1.11514531]
[1753263970391,4e-05,118190.0,118180.0,1.13259433]
[1753263970835,4e-05,118190.0,118180.0,1.41913909]
[1753263972322,0.40004,118190.0,118180.0,1.41913909]
[1753263972507,0.40004,118190.0,118180.0,1.37071334]
[1753263972939,0.40004,118190.0,118180.0,1.37055334]
[1753263975101,0.40004,118190.0,118180.0,1.39634598]
[1753263975323,0.1821,118220.0,118210.0,0.06691825]
[1753263975529,0.1821,118220.0,118210.0,0.95562831]
[1753263975530,0.18416,118220.0,118210.0,0.95562831]
[1753263975736,0.18416,118220.0,118210.0,0.95556343]
[1753263976410,0.18416,118220.0,118210.0,1.29556343]
[1753263976624,0.18465308,118220.0,118210.0,1.29556343]
[1753263976822,0.18465308,118220.0,118210.0,0.95656343]
[1753263977190,0.18465308,118220.0,118210.0,0.96509506]
[1753263977404,0.18777308,118220.0,118210.0,1.15972343]
[1753263981119,0.18777308,118220.0,118210.0,1.16072343]
[1753263988208,0.00049308,118220.0,118210.0,1.28076073]
[1753263988420,0.00049308,118220.0,118210.0,1.19628343]
[1753263990387,0.00049308,118220.0,118210.0,1.19312343]
[1753263990913,0.03585308,118220.0,118210.0,1.16072343]
[1753263991698,0.00049308,118220.0,118210.0,1.19322343]
[1753263992350,0.00049308,118220.0,118210.0,1.19638343]
[1753263992590,0.00049308,118220.0,118210.0,1.31196073]
[1753263992815,0.40049308,118220.0,118210.0,1.31196073]
[1753263993054,0.40049308,118220.0,118210.0,1.32940975]
[1753263994757,0.00049308,118220.0,118210.0,1.32940975]
[1753263996092,0.00049308,118220.0,118210.0,1.19744975]
[1753263996298,0.00049308,118220.0,118210.0,1.32940975]
[1753263996500,0.00049308,118220.0,118210.0,1.19744975]
[1753263996704,0.00049308,118220.0,118210.0,1.32940975]
[1753263998330,0.00049308,118220.0,118210.0,1.41388705]
[1753264001640,0.4,118230.0,118220.0,0.56775165]
[1753264001862,0.40014786,118230.0,118220.0,1.03838641]
[1753264002087,0.40014786,118230.0,118220.0,1.04154641]
[1753264002306,0.40014786,118230.0,118220.0,1.21050101]
[1753264002520,0.40014786,118230.0,118220.0,1.84399479]
[1753264003682,0.40014786,118230.0,118220.0,1.84799479]
[1753264003907,0.0311,118250.0,118240.0,0.24451874]
[1753264004117,0.06669,118260.0,118250.0,0.24450229]
[1753264004346,0.06885,118260.0,118250.0,0.66308705]
[1753264005754,0.06985,118260.0,118250.0,0.96198705]
[1753264006209,0.06985,118260.0,118250.0,0.67544229]
[1753264006364,0.06985,118260.0,118250.0,0.96198705]
[1753264007633,0.0783053,118260.0,118250.0,0.96198705]
[1753264007846,0.06985,118260.0,118250.0,0.9869168]
[1753264009898,0.06985,118260.0,118250.0,0.70037204]
[1753264010112,0.06985,118260.0,118250.0,0.9869168]
[1753264010806,0.08676074,118260.0,118250.0,0.8548768]
[1753264011020,0.0783053,118260.0,118250.0,1.1901168]
[1753264011449,0.08676074,118260.0,118250.0,1.1901168]
[1753264011661,0.0783053,118260.0,118250.0,1.1901168]
[1753264012262,0.06985,118260.0,118250.0,1.1901168]
[1753264012408,0.0783053,118260.0,118250.0,1.1901168]
[1753264012989,0.06985,118260.0,118250.0,1.1901168]
[1753264015034,0.03745,118260.0,118250.0,1.1901168]
[1753264015462,0.03745,118260.0,118250.0,1.1922068]
[1753264015894,0.03749,118260.0,118250.0,1.1922068]
[1753264016726,0.0345,118260.0,118250.0,1.1922068]
[1753264018419,0.03764,118260.0,118250.0,1.1922068]
[1753264018617,0.03664,118260.0,118250.0,1.1922068]
[1753264018999,0.03664,118260.0,118250.0,1.1932068]
[1753264020960,0.03664,118260.0,118250.0,1.1942068]
[1753264021173,0.03664,118260.0,118250.0,1.1921168]
[1753264021371,0.03664,118260.0,118250.0,0.90557204]
[1753264021571,0.06874,118260.0,118250.0,1.1921168]
[1753264023565,0.12998627,118270.0,118260.0,0.48103061]
[1753264023760,0.13013408,118270.0,118260.0,0.61303061]
[1753264023906,0.13226408,118270.0,118260.0,0.66303061]
[1753264024698,0.01918733,118270.0,118260.0,0.66303061]
[1753264025087,0.02764241,118270.0,118260.0,0.66303061]
[1753264025297,0.196747,118270.0,118260.0,0.66303061]
[1753264025508,0.20620215,118270.0,118260.0,0.66303061]
[1753264026293,0.20624215,118270.0,118260.0,0.66303061]
[1753264026501,0.27114215,118270.0,118260.0,0.66303061]
[1753264026845,0.27971537,118270.0,118260.0,0.66303061]
[1753264027056,0.28817017,118270.0,118260.0,0.66303061]
[1753264027259,0.28817081,118270.0,118260.0,0.66303061]
[1753264027462,0.28817081,118270.0,118260.0,0.66303075]
[1753264027698,0.28817081,118270.0,118260.0,0.67148619]
[1753264028151,0.27971559,118270.0,118260.0,0.67148619]
[1753264028366,0.10215585,118270.0,118260.0,0.67148619]
[1753264028888,0.09370077,118270.0,118260.0,0.67148619]
[1753264029332,0.10215585,118270.0,118260.0,0.97038619]
[1753264031280,0.09370077,118270.0,118260.0,0.97038619]
[1753264031504,0.10215585,118270.0,118260.0,0.97038619]
[1753264032560,0.27971566,118270.0,118260.0,0.97038619]
[1753264033163,0.27126044,118270.0,118260.0,0.97038619]
[1753264033383,0.27971559,118270.0,118260.0,0.97038619]
[1753264034596,0.24791559,118270.0,118260.0,0.97038619]
[1753264034802,0.24791559,118270.0,118260.0,0.68384143]
[1753264035023,0.24791559,118270.0,118260.0,0.97038619]
[1753264035241,0.24791559,118270.0,118260.0,0.68384143]
[1753264035417,0.25637081,118270.0,118260.0,0.97038619]
[1753264036254,0.24791559,118270.0,118260.0,0.97038619]
[1753264036468,0.23946044,118270.0,118260.0,0.97038619]
[1753264037252,0.26485844,118270.0,118260.0,1.32757345]
[1753264037467,0.26474037,118270.0,118260.0,1.32757345]
[1753264037674,0.27319559,118270.0,118260.0,1.31911801]
[1753264037882,0.27319559,118270.0,118260.0,1.32757352]
[1753264038097,0.26474037,118270.0,118260.0,1.33602896]
[1753264039578,0.08718063,118270.0,118260.0,1.33602896]
[1753264041785,0.09567925,118270.0,118260.0,1.33602896]
[1753264042299,0.08722381,118270.0,118260.0,1.33602896]
[1753264042494,0.09567882,118270.0,118260.0,1.33602896]
[1753264042618,0.1041339,118270.0,118260.0,1.20402896]
[1753264042829,0.28169364,118270.0,118260.0,1.31058243]
[1753264043095,0.27323948,118270.0,118260.0,1.31058243]
[1753264043299,0.27323948,118270.0,118260.0,1.31903794]
[1753264043721,0.27323948,118270.0,118260.0,1.32749338]
[1753264043935,0.26478426,118270.0,118260.0,1.32749338]
[1753264044157,0.26478426,118270.0,118260.0,0.68376136]
[1753264044372,0.26478426,118270.0,118260.0,1.31903794]
[1753264044590,0.26478426,118270.0,118260.0,1.53053338]
[1753264045227,0.26478426,118270.0,118260.0,1.51362243]
[1753264045443,0.26478426,118270.0,118260.0,1.53053338]
[1753264045899,0.27323948,118270.0,118260.0,1.52207801]
[1753264046114,0.26478426,118270.0,118260.0,1.53053352]
[1753264046311,0.26478426,118270.0,118260.0,1.53898896]
[1753264047315,0.26478426,118270.0,118260.0,1.53053352]
[1753264047522,0.27323948,118270.0,118260.0,1.53053352]
[1753264048266,0.26478426,118270.0,118260.0,1.53898896]
[1753264050427,0.09567932,118270.0,118260.0,1.54416896]
[1753264050615,0.1041339,118270.0,118260.0,1.54416896]
[1753264050825,0.11258898,118270.0,118260.0,1.54416896]
[1753264052251,0.28169407,118270.0,118260.0,0.90043694]
[1753264052458,0.28169407,118270.0,118260.0,1.54416896]
[1753264052793,0.11258948,118270.0,118260.0,1.54416896]
[1753264053406,0.11258948,118270.0,118260.0,1.41224896]
[1753264053715,0.69651256,118270.0,118260.0,0.63382]
[1753264053902,0.87611885,118270.0,118260.0,0.50194]
[1753264054097,0.55425284,118270.0,118260.0,0.63382]
[1753264055140,0.55425147,118270.0,118260.0,0.63382]
[1753264055349,0.55425147,118270.0,118260.0,0.68382]
[1753264055525,0.55425147,118270.0,118260.0,0.50194]
[1753264055750,0.55425147,118270.0,118260.0,0.63382]
[1753264056228,0.55425147,118270.0,118260.0,0.68382]
[1753264056870,0.55425147,118270.0,118260.0,1.00568601]
[1753264057074,0.55425147,118270.0,118260.0,0.95568601]
[1753264057278,0.55425147,118270.0,118260.0,1.00568601]
[1753264058930,0.55425147,118270.0,118260.0,0.50374601]
[1753264059775,0.55425147,118270.0,118260.0,0.45374601]
[1753264059990,0.55425147,118270.0,118260.0,0.50374601]
[1753264060606,0.55425147,118270.0,118260.0,0.45374601]
[1753264060808,0.55425147,118270.0,118260.0,0.50374601]
[1753264061717,5.94425147,118270.0,118260.0,0.13188]
[1753264061940,0.36894614,118250.0,118240.0,0.25304]
[1753264062150,0.37095614,118250.0,118240.0,0.38492]
[1753264062601,0.39636014,118250.0,118240.0,0.89284817]
[1753264062812,0.40481679,118250.0,118240.0,0.90976241]
[1753264063018,0.40481679,118250.0,118240.0,0.9013054]
[1753264063237,0.40481679,118250.0,118240.0,0.90976248]
[1753264063694,0.40481679,118250.0,118240.0,0.85976248]
[1753264063910,0.40481679,118250.0,118240.0,0.70678601]
[1753264064117,0.39535035,118250.0,118240.0,0.70678601]
[1753264064751,0.39535035,118250.0,118240.0,0.65678601]
[1753264064926,0.39535035,118250.0,118240.0,0.70678601]
[1753264065895,0.38689384,118250.0,118240.0,0.70678601]
[1753264066119,0.37843719,118250.0,118240.0,0.70678601]
[1753264066318,0.37843719,118250.0,118240.0,0.65678601]
[1753264066532,0.37843719,118250.0,118240.0,0.70678601]
[1753264067222,0.46291449,118250.0,118240.0,0.65678601]
[1753264067482,0.51919959,118250.0,118240.0,0.65678601]
[1753264067679,0.51919959,118250.0,118240.0,0.20304]
[1753264067905,5.56919959,118250.0,118240.0,0.20304]
[1753264068150,6.3810656,118250.0,118240.0,0.33492]
[1753264068334,6.2151078,118250.0,118240.0,0.33492]
[1753264069435,6.20919959,118250.0,118240.0,0.33492]
[1753264071515,6.20915201,118250.0,118240.0,0.33492]
[1753264073026,6.20915201,118250.0,118240.0,0.20304]
[1753264073254,6.20915201,118250.0,118240.0,0.33492]
[1753264073477,6.20915201,118250.0,118240.0,0.52490601]
[1753264073683,6.20915201,118250.0,118240.0,0.65678601]
[1753264075437,1.15915201,118250.0,118240.0,0.65678601]
[1753264075664,6.18242717,118250.0,118240.0,0.65678601]
[1753264075887,6.17652556,118250.0,118240.0,0.65678601]
[1753264076766,6.17652556,118250.0,118240.0,0.52490601]
[1753264076984,0.95208207,118250.0,118240.0,0.68858601]
[1753264077378,0.95208207,118250.0,118240.0,0.55670601]
[1753264077601,0.95208207,118250.0,118240.0,0.68858601]
[1753264078564,0.95208207,118250.0,118240.0,0.69704338]
[1753264078779,0.95208207,118250.0,118240.0,0.68858601]
[1753264079046,0.94362556,118250.0,118240.0,0.68858601]
[1753264079240,0.94362556,118250.0,118240.0,0.65293799]
[1753264080913,0.94362389,118250.0,118240.0,0.65293799]
[1753264081317,0.94362389,118250.0,118240.0,0.66139536]
[1753264081618,0.9520804,118250.0,118240.0,0.84745709]
[1753264081822,0.9520804,118250.0,118240.0,0.83900008]
[1753264082290,0.9520804,118250.0,118240.0,0.84745716]
[1753264082620,0.9520804,118250.0,118240.0,0.83054285]
[1753264083080,0.9520804,118250.0,118240.0,0.83900015]
[1753264084221,0.9520804,118250.0,118240.0,0.84745723]
[1753264084424,0.06437581,118250.0,118240.0,1.17403209]
[1753264084631,0.04331645,118250.0,118240.0,1.17403209]
[1753264084836,0.05177246,118250.0,118240.0,0.8878141]
[1753264085046,0.04331616,118250.0,118240.0,1.22403209]
[1753264085247,0.04331616,118250.0,118240.0,1.17403209]
[1753264085445,0.05177246,118250.0,118240.0,0.9378141]
[1753264085697,0.05177246,118250.0,118240.0,1.2367141]
[1753264085914,0.0602289,118250.0,118240.0,1.2367141]
[1753264086137,0.04331616,118250.0,118240.0,1.2367141]
[1753264086397,0.05177246,118250.0,118240.0,0.95049611]
[1753264086607,0.22936309,118250.0,118240.0,1.19635723]
[1753264086855,0.22936309,118250.0,118240.0,1.20481424]
[1753264087978,0.22936309,118250.0,118240.0,1.21327118]
[1753264088406,0.22936309,118250.0,118240.0,1.21327068]
[1753264088617,0.22936309,118250.0,118240.0,1.08139068]
[1753264088852,0.05177325,118250.0,118240.0,1.21327068]
[1753264089078,0.04331667,118250.0,118240.0,1.21327068]
[1753264089288,0.05177318,118250.0,118240.0,0.92705269]
[1753264089518,0.06022976,118250.0,118240.0,1.21327068]
[1753264089961,0.06022976,118250.0,118240.0,0.92705269]
[1753264090186,0.22936295,118250.0,118240.0,1.21327068]
[1753264090669,0.22936295,118250.0,118240.0,1.08139068]
[1753264090888,0.22936295,118250.0,118240.0,1.20481381]
[1753264091318,0.22936295,118250.0,118240.0,1.21327068]
[1753264091511,0.20936295,118250.0,118240.0,1.21327068]
[1753264091959,0.04022976,118250.0,118240.0,1.21327068]
[1753264093339,0.04022976,118250.0,118240.0,1.16327068]
[1753264093531,0.04022976,118250.0,118240.0,1.21327068]
[1753264095131,0.03177318,118250.0,118240.0,1.21327068]
[1753264096130,0.02331667,118250.0,118240.0,1.21327068]
[1753264096364,0.03177318,118250.0,118240.0,1.21327068]
[1753264099779,0.20936295,118250.0,118240.0,1.08139068]
[1753264099983,0.04022976,118250.0,118240.0,1.21327068]
[1753264100474,0.04022976,118250.0,118240.0,1.16327068]
[1753264100715,0.04022976,118250.0,118240.0,1.21327068]
[1753264101343,0.03177318,118250.0,118240.0,1.24900798]
[1753264101575,0.23370665,118250.0,118240.0,0.68382]
[1753264101885,0.30972758,118250.0,118240.0,0.50194]
[1753264102093,0.36816505,118250.0,118240.0,0.63393585]
[1753264102308,0.34022758,118250.0,118240.0,0.82373114]
[1753264102536,0.34022758,118250.0,118240.0,0.95589114]
[1753264103216,0.34122758,118250.0,118240.0,0.63393585]
[1753264103435,0.34122758,118250.0,118240.0,0.33503585]
[1753264103643,0.34122758,118250.0,118240.0,0.20287585]
[1753264103847,0.64122758,118250.0,118240.0,0.33503585]
[1753264104067,0.66980064,118250.0,118240.0,0.33503585]
[1753264104276,0.67080064,118250.0,118240.0,0.33503585]
[1753264104688,0.67080037,118250.0,118240.0,0.33503585]
[1753264104897,0.67080037,118250.0,118240.0,0.33491585]
[1753264105822,0.17760472,118240.0,118230.0,0.77123106]
[1753264106033,0.26208202,118240.0,118230.0,0.93367106]
[1753264106243,0.26208202,118240.0,118230.0,0.94212893]
[1753264106447,0.28748802,118240.0,118230.0,0.51537716]
[1753264106687,0.28748802,118240.0,118230.0,0.93367106]
[1753264106906,0.28748802,118240.0,118230.0,0.98367106]
[1753264108111,0.28748802,118240.0,118230.0,0.93367106]
[1753264108356,0.28748802,118240.0,118230.0,0.63895922]